[Event "Croatian junior league 2021"]
[Site "Rabac"]
[Date "2021.04.06"]
[Round "1.32"]
[White "Ljubicic, Mario"]
[Black "Ghersinich, Enrico"]
[Result "0-1"]
[ECO "A04"]
[WhiteElo "2036"]
[BlackElo "2186"]
[Annotator "ChessBase"]
[PlyCount "68"]
[EventDate "2021.04.06"]
[EventType "swiss"]
[EventCountry "CRO"]
[SourceTitle "playchess.com"]
[Source "ChessBase"]
[SourceQuality "1"]
[TimeControl "5400+30"]

1. e4 {[%emt 0:00:30]} c5 {[%emt 0:00:30]} 2. Nf3 {[%emt 0:00:00]} e6 {[%emt 0:00:30]} 3. d3 {[%emt 0:00:00]} Nc6 {[%emt 0:01:30]} 4. g3 {[%emt 0:00:30]} g6 {[%emt 0:00:30]} 5. Bg2 {[%emt 0:00:30]} Bg7 {[%emt 0:00:30]} 6. O-O {[%emt 0:00:30]} Nge7 {[%emt 0:01:30]} 7. c3 {[%emt 0:10:30]} O-O {[%emt 0:00:30]} 8. Bf4 {[%emt 0:07:30]} d5 {[%emt 0:04:30]} 9. e5 {[%emt 0:02:30]} d4 {[%emt 0:03:30]} 10. c4 {[%emt 0:01:30]} Rb8 {[%emt 0:09:30]} 11. Nbd2 {[%emt 0:10:30]} b5 {[%emt 0:08:30]} 12. b3 {[%emt 0:06:30]} Qc7 {[%emt 0:03:30]} 13. Re1 {[%emt 0:08:30]} Nb4 {[%emt 0:02:30]} 14. Ne4 {[%emt 0:01:30]} bxc4 {[%emt 0:01:30]} 15. bxc4 {[%emt 0:02:30]} Bb7 {[%emt 0:03:30]} 16. Nf6+ {[%emt 0:07:30]} Kh8 {[%emt 0:00:30]} 17. Qd2 {[%emt 0:00:30]} Bxf3 {[%emt 0:06:30]} 18. Bxf3 {[%emt 0:00:30]} Ng8 {[%emt 0:00:30]} 19. g4 {[%emt 0:06:30]} Nxd3 {[%emt 0:04:30]} 20. Qxd3 {[%emt 0:07:30]} Bxf6 {[%emt 0:02:30]} 21. Qa3 {[%emt 0:04:30]} Bg7 {[%emt 0:04:30]} 22. Rab1 {[%emt 0:02:51]} Rb6 {[%emt 0:05:30]} 23. Rxb6 {[%emt 0:03:53]} Qxb6 {[%emt 0:00:30]} 24. Be4 {[%emt 0:01:00]} Qc7 {[%emt 0:01:30]} 25. Rb1 {[%emt 0:02:23]} Bxe5 {[%emt 0:00:30]} 26. Rb7 {[%emt 0:01:23]} Qd6 {[%emt 0:00:30]} 27. Bxe5+ {[%emt 0:02:07]} Qxe5 {[%emt 0:00:30]} 28. Bf3 {[%emt 0:00:05]} Rb8 {[%emt 0:07:30]} 29. Rxf7 {[%emt 0:09:11]} Nh6 {[%emt 0:01:30]} 30. Re7 {[%emt 0:00:50]} Rf8 {[%emt 0:03:30]} 31. Qxa7 {[%emt 0:00:41]} Rxf3 {[%emt 0:00:30]} 32. Rxh7+ {[%emt 0:00:35]} Kg8 {[%emt 0:00:00]} 33. Kg2 {[%emt 0:00:27]} Rf7 {[%emt 0:02:00]} 34. Rxf7 {[%emt 0:00:11]} Nxf7 {[%emt 0:00:30]} 0-1

[Event "Croatian junior league 2021"]
[Site "Rabac"]
[Date "2021.04.06"]
[Round "1.33"]
[White "Purini, Bruno"]
[Black "Mijic, Karlo"]
[Result "0-1"]
[ECO "C69"]
[WhiteElo "1987"]
[BlackElo "1599"]
[Annotator "ChessBase"]
[PlyCount "82"]
[EventDate "2021.04.06"]
[EventType "swiss"]
[EventCountry "CRO"]
[SourceTitle "playchess.com"]
[Source "ChessBase"]
[SourceQuality "1"]
[TimeControl "5400+30"]

1. e4 {[%emt 0:01:30]} e5 {[%emt 0:03:30]} 2. Nf3 {[%emt 0:00:30]} Nc6 {[%emt 0:00:00]} 3. Bb5 {[%emt 0:00:00]} a6 {[%emt 0:00:00]} 4. Bxc6 {[%emt 0:00:00]} dxc6 {[%emt 0:00:00]} 5. O-O {[%emt 0:00:00]} f6 {[%emt 0:00:00]} 6. d4 {[%emt 0:00:00]} exd4 {[%emt 0:00:30]} 7. Nxd4 {[%emt 0:00:30]} c5 {[%emt 0:00:00]} 8. Nb3 {[%emt 0:01:30]} Qxd1 {[%emt 0:00:00]} 9. Rxd1 {[%emt 0:00:00]} Be6 {[%emt 0:00:30]} 10. Be3 {[%emt 0:01:00]} b6 {[%emt 0:00:30]} 11. Nc3 {[%emt 0:00:30]} Bd6 {[%emt 0:03:30]} 12. Nd5 {[%emt 0:10:30]} O-O-O {[%emt 0:01:30]} 13. a4 {[%emt 0:13:30]} Kb7 {[%emt 0:09:30]} 14. a5 {[%emt 0:07:30]} f5 {[%emt 0:00:00]} 15. axb6 {[%emt 0:05:30]} cxb6 {[%emt 0:00:00]} 16. Bg5 {[%emt 0:05:30]} Rd7 {[%emt 0:01:30]} 17. f3 {[%emt 0:02:30]} fxe4 {[%emt 0:08:30]} 18. fxe4 {[%emt 0:00:30]} Be5 {[%emt 0:05:30]} 19. c3 {[%emt 0:08:30]} h6 {[%emt 0:00:30]} 20. Be3 {[%emt 0:04:30]} Nf6 {[%emt 0:00:30]} 21. Nd2 {[%emt 0:08:30]} Nxd5 {[%emt 0:05:30]} 22. exd5 {[%emt 0:00:00]} Rxd5 {[%emt 0:00:30]} 23. Nf3 {[%emt 0:00:00]} Bc7 {[%emt 0:00:00]} 24. Rxd5 {[%emt 0:07:30]} Bxd5 {[%emt 0:00:00]} 25. Rd1 {[%emt 0:00:00]} Bc6 {[%emt 0:00:30]} 26. b4 {[%emt 0:01:00]} Re8 {[%emt 0:00:30]} 27. Kf2 {[%emt 0:00:30]} cxb4 {[%emt 0:07:30]} 28. cxb4 {[%emt 0:00:30]} Re4 {[%emt 0:00:30]} 29. Rd4 {[%emt 0:02:30]} Rxd4 {[%emt 0:00:30]} 30. Bxd4 {[%emt 0:00:30]} g6 {[%emt 0:01:30]} 31. h3 {[%emt 0:00:30]} a5 {[%emt 0:00:30]} 32. bxa5 {[%emt 0:00:50]} bxa5 {[%emt 0:00:30]} 33. Ke2 {[%emt 0:00:48]} Bb5+ {[%emt 0:00:30]} 34. Ke3 {[%emt 0:01:20]} Bb6 {[%emt 0:00:30]} 35. h4 {[%emt 0:00:32]} Bxd4+ {[%emt 0:00:00]} 36. Nxd4 {[%emt 0:00:28]} Bd7 {[%emt 0:00:00]} 37. Kd3 {[%emt 0:01:26]} Kc7 {[%emt 0:02:30]} 38. Kc4 {[%emt 0:03:39]} Kd6 {[%emt 0:00:30]} 39. Ne2 {[%emt 0:04:56]} Ke5 {[%emt 0:01:30]} 40. g3 {[%emt 0:01:47]} Ke4 {[%emt 0:00:30]} 41. Nd4 {[%emt 0:01:28]} a4 {[%emt 0:00:30]} 0-1

[Event "Croatian junior league 2021"]
[Site "Rabac"]
[Date "2021.04.06"]
[Round "1.34"]
[White "Bedic, Noemi"]
[Black "Duda, Daniel"]
[Result "0-1"]
[ECO "B23"]
[WhiteElo "1587"]
[BlackElo "1968"]
[Annotator "ChessBase"]
[PlyCount "61"]
[EventDate "2021.04.06"]
[EventType "swiss"]
[EventCountry "CRO"]
[SourceTitle "playchess.com"]
[Source "ChessBase"]
[SourceQuality "1"]
[TimeControl "5400+30"]

1. e4 {[%emt 0:00:30]} c5 {[%emt 0:07:30]} 2. Nc3 {[%emt 0:02:30]} g6 {[%emt 0:01:30]} 3. f4 {[%emt 0:00:00]} Bg7 {[%emt 0:00:30]} 4. Nf3 {[%emt 0:00:00]} Nc6 {[%emt 0:00:30]} 5. Bb5 {[%emt 0:02:30]} Nd4 {[%emt 0:07:30]} 6. O-O {[%emt 0:00:00]} Nxb5 {[%emt 0:03:30]} 7. Nxb5 {[%emt 0:02:00]} a6 {[%emt 0:09:30]} 8. Nc3 {[%emt 0:00:00]} e6 {[%emt 0:00:30]} 9. a4 {[%emt 0:05:00]} b6 {[%emt 0:00:30]} 10. d3 {[%emt 0:07:30]} Ne7 {[%emt 0:01:30]} 11. Qe1 {[%emt 0:03:30]} O-O {[%emt 0:00:30]} 12. b3 {[%emt 0:06:30]} d5 {[%emt 0:04:30]} 13. Bb2 {[%emt 0:02:30]} Bb7 {[%emt 0:03:30]} 14. Nd1 {[%emt 0:10:30]} d4 {[%emt 0:05:30]} 15. Nf2 {[%emt 0:04:30]} Qc7 {[%emt 0:04:30]} 16. Bc1 {[%emt 0:02:30]} Nc6 {[%emt 0:04:30]} 17. Bd2 {[%emt 0:03:30]} b5 {[%emt 0:10:30]} 18. e5 {[%emt 0:09:30]} Ne7 {[%emt 0:01:30]} 19. Ne4 {[%emt 0:06:30]} Bxe4 {[%emt 0:01:30]} 20. Qxe4 {[%emt 0:00:30]} Nd5 {[%emt 0:04:30]} 21. c4 {[%emt 0:06:30]} dxc3 {[%emt 0:00:30]} 22. Be1 {[%emt 0:02:30]} Rfe8 {[%emt 0:07:36]} 23. axb5 {[%emt 0:01:30]} axb5 {[%emt 0:00:11]} 24. Rxa8 {[%emt 0:00:30]} Rxa8 {[%emt 0:00:02]} 25. Bxc3 {[%emt 0:00:30]} Ra3 {[%emt 0:01:11]} 26. Rc1 {[%emt 0:03:33]} Rxb3 {[%emt 0:01:35]} 27. Bd4 {[%emt 0:03:42]} Bf8 {[%emt 0:03:00]} 28. Bf2 {[%emt 0:03:54]} Rb4 {[%emt 0:04:52]} 29. d4 {[%emt 0:03:11]} c4 {[%emt 0:00:03]} 30. f5 {[%emt 0:05:46]} gxf5 {[%emt 0:11:49]} 31. Qh4 {[%emt 0:00:30]} 0-1

[Event "Croatian junior league 2021"]
[Site "Rabac"]
[Date "2021.04.06"]
[Round "1.41"]
[White "Bunic, Emanuel"]
[Black "Kovac, Petar"]
[Result "1-0"]
[ECO "D31"]
[WhiteElo "1839"]
[BlackElo "2089"]
[Annotator "ChessBase"]
[PlyCount "53"]
[EventDate "2021.04.06"]
[EventType "swiss"]
[EventCountry "CRO"]
[SourceTitle "playchess.com"]
[Source "ChessBase"]
[SourceQuality "1"]
[TimeControl "5400+30"]

1. d4 {[%emt 0:00:30]} d5 {[%emt 0:00:30]} 2. c4 {[%emt 0:00:00]} e6 {[%emt 0:00:00]} 3. Nc3 {[%emt 0:00:00]} Be7 {[%emt 0:01:00]} 4. cxd5 {[%emt 0:00:30]} exd5 {[%emt 0:00:00]} 5. Bf4 {[%emt 0:00:30]} c6 {[%emt 0:01:00]} 6. e3 {[%emt 0:00:00]} Bf5 {[%emt 0:01:30]} 7. g4 {[%emt 0:00:00]} Bg6 {[%emt 0:01:30]} 8. h4 {[%emt 0:00:30]} h6 {[%emt 0:05:30]} 9. h5 {[%emt 0:00:30]} Bh7 {[%emt 0:00:00]} 10. Bd3 {[%emt 0:00:30]} Bxd3 {[%emt 0:00:00]} 11. Qxd3 {[%emt 0:00:30]} Nf6 {[%emt 0:00:30]} 12. f3 {[%emt 0:00:30]} Nbd7 {[%emt 0:00:30]} 13. Nge2 {[%emt 0:01:30]} O-O {[%emt 0:12:30]} 14. O-O-O {[%emt 0:02:30]} c5 {[%emt 0:02:30]} 15. g5 {[%emt 0:03:30]} hxg5 {[%emt 0:00:30]} 16. Bxg5 {[%emt 0:00:30]} Kh8 {[%emt 0:01:30]} 17. Nf4 {[%emt 0:04:30]} c4 {[%emt 0:03:30]} 18. Qf5 {[%emt 0:03:30]} Re8 {[%emt 0:05:30]} 19. Rdg1 {[%emt 0:08:30]} Qa5 {[%emt 0:08:30]} 20. Ng6+ {[%emt 0:05:30]} Kg8 {[%emt 0:00:00]} 21. Nxe7+ {[%emt 0:01:30]} Rxe7 {[%emt 0:00:00]} 22. Bxf6 {[%emt 0:00:30]} Rxe3 {[%emt 0:00:30]} 23. Bxg7 {[%emt 0:05:30]} Rxc3+ {[%emt 0:02:30]} 24. bxc3 {[%emt 0:00:00]} Qxc3+ {[%emt 0:00:00]} 25. Qc2 {[%emt 0:00:00]} Qa1+ {[%emt 0:00:00]} 26. Kd2 {[%emt 0:00:30]} c3+ {[%emt 0:00:30]} 27. Ke2 {[%emt 0:01:30]} 1-0

[Event "Croatian junior league 2021"]
[Site "Rabac"]
[Date "2021.04.06"]
[Round "1.42"]
[White "Stjepic, Borna"]
[Black "Zadro, Matej"]
[Result "1-0"]
[ECO "C29"]
[WhiteElo "1825"]
[BlackElo "1742"]
[Annotator "NA"]
[PlyCount "37"]
[EventDate "2021.04.06"]
[EventType "swiss"]
[EventCountry "CRO"]
[SourceTitle "playchess.com"]
[Source "ChessBase"]
[SourceQuality "1"]
[TimeControl "5400+30"]

1. e4 {[%emt 0:00:30]} e5 {[%emt 0:00:30]} 2. Nc3 {[%emt 0:00:00]} Nf6 {[%emt 0:00:30]} 3. f4 {[%emt 0:00:00]} d5 {[%emt 0:00:00]} 4. fxe5 {[%emt 0:00:00]} Nxe4 {[%emt 0:00:00]} 5. Qf3 {[%emt 0:00:00]} Nxc3 {[%emt 0:00:30]} 6. bxc3 {[%emt 0:01:30]} Be6 {[%emt 0:01:30]} 7. d4 {[%emt 0:05:30]} c5 {[%emt 0:02:30]} 8. Qg3 {[%emt 0:03:30]} Qa5 {[%emt 0:08:30]} 9. Bd2 {[%emt 0:01:30]} Qa4 {[%emt 0:00:30]} 10. Rb1 {[%emt 0:03:30]} Qxa2 {[%emt 0:13:30]} 11. Rxb7 {[%emt 0:00:30] [#]} Qa1+ $11 {[%emt 0:00:30]} (11... Nd7 $1 $17 12. Qf3 cxd4 13. cxd4 Qa1+ {[%mdl 64] Double Attack} 14. Kf2 Qxd4+ {[%mdl 64] Double Attack} 15. Be3 Qc3) 12. Kf2 {[%emt 0:00:30]} c4 {[%emt 0:09:30]} 13. Nf3 {[%emt 0:09:30]} Bc8 {[%emt 0:26:30]} 14. Bxc4 {[%emt 0:17:30]} Qxh1 {[%emt 0:00:30]} 15. Bb5+ {[%emt 0:00:00]} Bd7 {[%emt 0:09:30]} 16. Qg4 {[%emt 0:00:00]} Be7 {[%emt 0:06:45]} 17. Bxd7+ {[%emt 0:01:30]} Kf8 {[%emt 0:00:09]} 18. Bb5 {[%emt 0:02:30]} Nc6 {[%emt 0:05:41]} 19. Bxc6 {[%emt 0:00:30]} 1-0

[Event "Croatian junior league 2021"]
[Site "Rabac"]
[Date "2021.04.06"]
[Round "1.43"]
[White "Horcicka, Jan"]
[Black "Vukojevic, Toni"]
[Result "1-0"]
[ECO "C50"]
[WhiteElo "1698"]
[BlackElo "1538"]
[Annotator "NA"]
[PlyCount "43"]
[EventDate "2021.04.06"]
[EventType "swiss"]
[EventCountry "CRO"]
[SourceTitle "playchess.com"]
[Source "ChessBase"]
[SourceQuality "1"]
[TimeControl "5400+30"]

1. e4 {[%emt 0:00:30]} e5 {[%emt 0:00:30]} 2. Nf3 {[%emt 0:00:00]} Nc6 {[%emt 0:00:00]} 3. Bc4 {[%emt 0:00:00]} Bc5 {[%emt 0:00:00]} 4. Nc3 {[%emt 0:00:30]} Nf6 {[%emt 0:00:30]} 5. d3 {[%emt 0:00:30]} h6 {[%emt 0:00:30]} 6. h3 {[%emt 0:00:00]} O-O {[%emt 0:00:00]} 7. g4 {[%emt 0:00:00]} d6 {[%emt 0:02:00]} 8. g5 {[%emt 0:00:30]} hxg5 {[%emt 0:01:30]} 9. Bxg5 {[%emt 0:00:30]} Bb4 {[%emt 0:00:30]} 10. Qd2 {[%emt 0:03:30]} Nd4 {[%emt 0:01:30]} 11. Nh4 {[%emt 0:03:30]} b5 {[%emt 0:03:30]} 12. Bb3 {[%emt 0:01:30]} c5 {[%emt 0:05:30]} 13. Bd5 {[%emt 0:01:30]} Rb8 {[%emt 0:01:30]} 14. Rg1 {[%emt 0:00:30]} Bxh3 {[%emt 0:02:30]} 15. Rg3 {[%emt 0:04:30]} Be6 {[%emt 0:01:30]} 16. O-O-O {[%emt 0:04:30]} Re8 {[%emt 0:23:30]} 17. Rdg1 {[%emt 0:03:30]} Kf8 {[%emt 0:05:30]} 18. Bxe6 {[%emt 0:18:30]} Nxe6 {[%emt 0:04:30]} 19. Nf5 {[%emt 0:01:30]} Ba5 {[%emt 0:03:30]} 20. Rh1 {[%emt 0:03:30]} Bxc3 {[%emt 0:11:30]} 21. bxc3 {[%emt 0:00:30]} Kg8 {[%emt 0:10:30]} 22. Rgh3 {[%emt 0:00:30]} 1-0

[Event "Croatian junior league 2021"]
[Site "Rabac"]
[Date "2021.04.06"]
[Round "1.51"]
[White "Jakrlin, Mihael"]
[Black "Alfirevic, Duje"]
[Result "1-0"]
[ECO "A12"]
[WhiteElo "2106"]
[BlackElo "1996"]
[Annotator "ChessBase"]
[PlyCount "93"]
[EventDate "2021.04.06"]
[EventType "swiss"]
[EventCountry "CRO"]
[SourceTitle "playchess.com"]
[Source "ChessBase"]
[SourceQuality "1"]
[TimeControl "5400+30"]

1. Nf3 {[%emt 0:00:30]} d5 {[%emt 0:00:30]} 2. c4 {[%emt 0:00:30]} c6 {[%emt 0:00:00]} 3. b3 {[%emt 0:00:00]} Nf6 {[%emt 0:01:00]} 4. g3 {[%emt 0:00:00]} Bf5 {[%emt 0:00:30]} 5. Bg2 {[%emt 0:00:30]} e6 {[%emt 0:01:30]} 6. O-O {[%emt 0:00:30]} h6 {[%emt 0:00:30]} 7. Bb2 {[%emt 0:00:30]} Be7 {[%emt 0:00:00]} 8. d3 {[%emt 0:00:30]} O-O {[%emt 0:00:00]} 9. Nbd2 {[%emt 0:00:30]} Nbd7 {[%emt 0:01:30]} 10. Qc2 {[%emt 0:00:30]} Re8 {[%emt 0:03:30]} 11. Bc3 {[%emt 0:06:30]} Bh7 {[%emt 0:15:30]} 12. b4 {[%emt 0:01:30]} dxc4 {[%emt 0:11:30]} 13. Nxc4 {[%emt 0:02:30]} Nd5 {[%emt 0:01:30]} 14. Rab1 {[%emt 0:01:30]} Nxc3 {[%emt 0:02:30]} 15. Qxc3 {[%emt 0:00:30]} Qc7 {[%emt 0:06:30]} 16. Rfc1 {[%emt 0:01:30]} Rac8 {[%emt 0:04:30]} 17. a4 {[%emt 0:10:30]} Nb6 {[%emt 0:08:30]} 18. a5 {[%emt 0:01:30]} Nd5 {[%emt 0:01:30]} 19. Qe1 {[%emt 0:00:30]} b6 {[%emt 0:07:30]} 20. e4 {[%emt 0:07:30]} Nf6 {[%emt 0:02:30]} 21. Nce5 {[%emt 0:04:30]} c5 {[%emt 0:08:30]} 22. b5 {[%emt 0:03:30]} Nd7 {[%emt 0:05:48]} 23. Nc6 {[%emt 0:01:30]} Nb8 {[%emt 0:00:45]} 24. axb6 {[%emt 0:00:30]} axb6 {[%emt 0:01:46]} 25. Nxe7+ {[%emt 0:00:30]} Qxe7 {[%emt 0:01:04]} 26. Ne5 {[%emt 0:00:30]} Red8 {[%emt 0:03:01]} 27. Rb3 {[%emt 0:03:30]} Rd4 {[%emt 0:05:06]} 28. Ra1 {[%emt 0:02:30]} f6 {[%emt 0:02:59]} 29. Nc4 {[%emt 0:01:30]} Rcd8 {[%emt 0:01:21]} 30. Nxb6 {[%emt 0:09:30]} Rxd3 {[%emt 0:00:32]} 31. Nd5 {[%emt 0:00:30]} R8xd5 {[%emt 0:00:47]} 32. exd5 {[%emt 0:00:00]} Rxb3 {[%emt 0:00:11]} 33. Bf1 {[%emt 0:02:00]} Bf5 {[%emt 0:02:08]} 34. Qd1 {[%emt 0:00:30]} Rb4 {[%emt 0:00:53]} 35. d6 {[%emt 0:00:30]} Qb7 {[%emt 0:00:15]} 36. Qc1 {[%emt 0:03:30]} Nd7 {[%emt 0:00:48]} 37. Qa3 {[%emt 0:01:30]} Qd5 {[%emt 0:00:39]} 38. Qa6 {[%emt 0:00:30]} Rd4 {[%emt 0:00:30]} 39. Qc8+ {[%emt 0:00:30]} Nf8 {[%emt 0:00:09]} 40. b6 {[%emt 0:00:30]} Qxd6 {[%emt 0:00:22]} 41. b7 {[%emt 0:00:30]} Rb4 {[%emt 0:01:01]} 42. Ra8 {[%emt 0:00:30]} Bh3 {[%emt 0:00:46]} 43. Bxh3 {[%emt 0:01:30]} Qd1+ {[%emt 0:00:16]} 44. Bf1 {[%emt 0:00:00]} Rb1 {[%emt 0:00:34]} 45. Qxe6+ {[%emt 0:00:00]} Kh7 {[%emt 0:00:19]} 46. Qe4+ {[%emt 0:00:00]} Ng6 {[%emt 0:00:03]} 47. Qxb1 {[%emt 0:00:00]} 1-0

[Event "Croatian junior league 2021"]
[Site "Rabac"]
[Date "2021.04.06"]
[Round "1.52"]
[White "Vucenovic, Damian"]
[Black "Troselj, Ivan"]
[Result "0-1"]
[ECO "B13"]
[WhiteElo "2008"]
[BlackElo "1962"]
[Annotator "ChessBase"]
[PlyCount "118"]
[EventDate "2021.04.06"]
[EventType "swiss"]
[EventCountry "CRO"]
[SourceTitle "playchess.com"]
[Source "ChessBase"]
[SourceQuality "1"]
[TimeControl "5400+30"]

1. e4 {[%emt 0:00:30]} c6 {[%emt 0:01:30]} 2. d4 {[%emt 0:00:30]} d5 {[%emt 0:00:00]} 3. exd5 {[%emt 0:00:30]} cxd5 {[%emt 0:00:00]} 4. Bd3 {[%emt 0:00:30]} Nc6 {[%emt 0:00:00]} 5. c3 {[%emt 0:01:30]} Qc7 {[%emt 0:00:00]} 6. Ne2 {[%emt 0:05:30]} e5 {[%emt 0:00:30]} 7. dxe5 {[%emt 0:03:30]} Nxe5 {[%emt 0:00:00]} 8. Bb5+ {[%emt 0:02:30]} Bd7 {[%emt 0:05:00]} 9. Bxd7+ {[%emt 0:07:30]} Qxd7 {[%emt 0:01:30]} 10. O-O {[%emt 0:03:30]} Nf6 {[%emt 0:05:30]} 11. Re1 {[%emt 0:03:30]} Be7 {[%emt 0:01:30]} 12. Nd4 {[%emt 0:08:30]} Nc4 {[%emt 0:00:30]} 13. Qf3 {[%emt 0:13:30]} Ne4 {[%emt 0:11:30]} 14. Nf5 {[%emt 0:02:30]} Bf6 {[%emt 0:00:30]} 15. Nd2 {[%emt 0:13:30]} Ncxd2 {[%emt 0:00:30]} 16. Bxd2 {[%emt 0:00:30]} O-O {[%emt 0:00:30]} 17. Be3 {[%emt 0:01:30]} Qb5 {[%emt 0:06:30]} 18. Qg4 {[%emt 0:09:30]} Qxb2 {[%emt 0:10:30]} 19. f3 {[%emt 0:06:44]} Nxc3 {[%emt 0:01:30]} 20. Bd4 {[%emt 0:04:38]} Bxd4+ {[%emt 0:03:30]} 21. Qxd4 {[%emt 0:00:11]} Qb6 {[%emt 0:00:00]} 22. Re3 {[%emt 0:02:47]} Qxd4 {[%emt 0:00:00]} 23. Nxd4 {[%emt 0:00:03]} Rfc8 {[%emt 0:06:30]} 24. Nf5 {[%emt 0:00:57]} Kf8 {[%emt 0:01:30]} 25. Rae1 {[%emt 0:03:54]} Rc7 {[%emt 0:02:30]} 26. Nd6 {[%emt 0:02:49]} g6 {[%emt 0:00:30]} 27. a3 {[%emt 0:00:24]} b6 {[%emt 0:03:30]} 28. h4 {[%emt 0:01:10]} Rd8 {[%emt 0:04:30]} 29. Re8+ {[%emt 0:00:38]} Rxe8 {[%emt 0:00:00]} 30. Rxe8+ {[%emt 0:00:06]} Kg7 {[%emt 0:00:00]} 31. Rc8 {[%emt 0:00:53]} Rxc8 {[%emt 0:00:30]} 32. Nxc8 {[%emt 0:00:05]} Nb5 {[%emt 0:00:30]} 33. a4 {[%emt 0:00:15]} Nc3 {[%emt 0:00:30]} 34. Nxa7 {[%emt 0:00:10]} Nxa4 {[%emt 0:00:00]} 35. Nb5 {[%emt 0:00:11]} Kf6 {[%emt 0:00:00]} 36. Kf2 {[%emt 0:00:04]} Ke5 {[%emt 0:00:30]} 37. Ke3 {[%emt 0:00:08]} Nc5 {[%emt 0:01:30]} 38. f4+ {[%emt 0:00:46]} Kf5 {[%emt 0:01:30]} 39. Kf3 {[%emt 0:01:53]} Nb3 {[%emt 0:01:30]} 40. Nc7 {[%emt 0:00:42]} d4 {[%emt 0:01:30]} 41. g4+ {[%emt 0:00:35]} Kf6 {[%emt 0:00:00]} 42. Nd5+ {[%emt 0:00:44]} Ke6 {[%emt 0:00:00]} 43. Nxb6 {[%emt 0:00:12]} Nc5 {[%emt 0:00:30]} 44. Nc4 {[%emt 0:00:54]} f6 {[%emt 0:00:30]} 45. Nd2 {[%emt 0:00:52]} Kd5 {[%emt 0:00:30]} 46. h5 {[%emt 0:00:38]} gxh5 {[%emt 0:00:30]} 47. gxh5 {[%emt 0:00:31]} f5 {[%emt 0:00:00]} 48. Kg2 {[%emt 0:00:31]} d3 {[%emt 0:01:00]} 49. Kf3 {[%emt 0:00:17]} Kd4 {[%emt 0:00:30]} 50. h6 {[%emt 0:01:04]} Kc3 {[%emt 0:05:30]} 51. Nf1 {[%emt 0:00:30]} Nb3 {[%emt 0:00:30]} 52. Ne3 {[%emt 0:00:30]} Nd4+ {[%emt 0:00:30]} 53. Kf2 {[%emt 0:00:30]} d2 {[%emt 0:00:30]} 54. Kg3 {[%emt 0:00:30]} Kd3 {[%emt 0:00:30]} 55. Nd1 {[%emt 0:00:30]} Ke2 {[%emt 0:00:30]} 56. Nc3+ {[%emt 0:00:30]} Ke1 {[%emt 0:00:30]} 57. Kh4 {[%emt 0:00:30]} Ne6 {[%emt 0:00:30]} 58. Kh5 {[%emt 0:00:30]} d1=Q+ {[%emt 0:00:30]} 59. Nxd1 {[%emt 0:00:30]} Kxd1 {[%emt 0:00:30]} 0-1

[Event "Croatian junior league 2021"]
[Site "Rabac"]
[Date "2021.04.06"]
[Round "1.53"]
[White "Birkic, Josip"]
[Black "Sagovac, Kristijan"]
[Result "1-0"]
[ECO "D02"]
[WhiteElo "1972"]
[BlackElo "1920"]
[Annotator "ChessBase"]
[PlyCount "149"]
[EventDate "2021.04.06"]
[EventType "swiss"]
[EventCountry "CRO"]
[SourceTitle "playchess.com"]
[Source "ChessBase"]
[SourceQuality "1"]
[TimeControl "5400+30"]

1. d4 {[%emt 0:09:30]} Nf6 {[%emt 0:00:30]} 2. Nf3 {[%emt 0:00:30]} e6 {[%emt 0:00:00]} 3. Bf4 {[%emt 0:01:30]} d5 {[%emt 0:01:00]} 4. e3 {[%emt 0:00:30]} Bd6 {[%emt 0:06:30]} 5. Bg3 {[%emt 0:02:30]} O-O {[%emt 0:00:30]} 6. c4 {[%emt 0:00:00]} c5 {[%emt 0:03:30]} 7. cxd5 {[%emt 0:03:00]} cxd4 {[%emt 0:19:30]} 8. Bxd6 {[%emt 0:07:30]} Qxd6 {[%emt 0:00:30]} 9. Qxd4 {[%emt 0:05:30]} exd5 {[%emt 0:03:30]} 10. Nc3 {[%emt 0:01:30]} Nc6 {[%emt 0:01:30]} 11. Qh4 {[%emt 0:01:30]} Bf5 {[%emt 0:01:30]} 12. Be2 {[%emt 0:02:30]} a6 {[%emt 0:02:30]} 13. Rd1 {[%emt 0:00:30]} Rfe8 {[%emt 0:12:30]} 14. O-O {[%emt 0:03:30]} b5 {[%emt 0:02:30]} 15. Nd4 {[%emt 0:06:30]} Be4 {[%emt 0:05:30]} 16. Nxc6 {[%emt 0:06:30]} Qxc6 {[%emt 0:00:30]} 17. Rd4 {[%emt 0:00:00]} Rab8 {[%emt 0:08:30]} 18. Bd1 {[%emt 0:04:00]} a5 {[%emt 0:01:30]} 19. a4 {[%emt 0:02:30]} b4 {[%emt 0:00:30]} 20. Ne2 {[%emt 0:02:30]} Bc2 {[%emt 0:02:30]} 21. b3 {[%emt 0:05:30]} Bxd1 {[%emt 0:01:30]} 22. Rdxd1 {[%emt 0:03:30]} Re4 {[%emt 0:01:30]} 23. Qg3 {[%emt 0:01:30]} Rbe8 {[%emt 0:01:30]} 24. Rc1 {[%emt 0:07:30]} Qa6 {[%emt 0:02:30]} 25. Qf3 {[%emt 0:02:54]} Nd7 {[%emt 0:02:23]} 26. Ng3 {[%emt 0:02:21]} R4e5 {[%emt 0:02:31]} 27. Rfd1 {[%emt 0:01:42]} Qe6 {[%emt 0:02:05]} 28. h4 {[%emt 0:00:47]} Nf6 {[%emt 0:03:18]} 29. Rc5 {[%emt 0:00:37]} Ne4 {[%emt 0:02:00]} 30. Rxa5 {[%emt 0:02:02]} Nc3 {[%emt 0:00:00]} 31. Rd4 {[%emt 0:01:51]} Qb6 {[%emt 0:00:01]} 32. Raxd5 {[%emt 0:03:41]} Nxd5 {[%emt 0:00:01]} 33. Rxd5 {[%emt 0:00:04]} Rxd5 {[%emt 0:00:25]} 34. Qxd5 {[%emt 0:00:37]} Rc8 {[%emt 0:12:16]} 35. Nf5 {[%emt 0:02:41]} Qe6 {[%emt 0:00:00]} 36. e4 {[%emt 0:02:45]} g6 {[%emt 0:00:00]} 37. Ne3 {[%emt 0:02:10]} Rc1+ {[%emt 0:00:00]} 38. Kh2 {[%emt 0:00:30]} Qxd5 {[%emt 0:00:00]} 39. Nxd5 {[%emt 0:00:03]} Rb1 {[%emt 0:00:00]} 40. Nxb4 {[%emt 0:01:11]} Rxb3 {[%emt 0:00:00]} 41. Nd5 {[%emt 0:00:19]} Ra3 {[%emt 0:00:09]} 42. Nb6 {[%emt 0:00:37]} Rb3 {[%emt 0:00:05]} 43. Nd5 {[%emt 0:00:40]} Rd3 {[%emt 0:00:04]} 44. f3 {[%emt 0:00:29]} Rd4 {[%emt 0:00:00]} 45. Kg3 {[%emt 0:01:50]} Rxa4 {[%emt 0:00:01]} 46. h5 {[%emt 0:01:00]} g5 {[%emt 0:02:09]} 47. h6 {[%emt 0:00:55]} Ra6 {[%emt 0:00:00]} 48. Kg4 {[%emt 0:00:07]} Rxh6 {[%emt 0:00:35]} 49. e5 {[%emt 0:01:23]} Kg7 {[%emt 0:01:12]} 50. g3 {[%emt 0:00:45]} Re6 {[%emt 0:00:48]} 51. f4 {[%emt 0:00:51]} gxf4 {[%emt 0:00:09]} 52. gxf4 {[%emt 0:00:02]} Rg6+ {[%emt 0:00:49]} 53. Kh5 {[%emt 0:00:12]} Rg1 {[%emt 0:00:18]} 54. Nf6 {[%emt 0:00:34]} Rf1 {[%emt 0:00:46]} 55. Nd5 {[%emt 0:00:38]} Rh1+ {[%emt 0:00:41]} 56. Kg5 {[%emt 0:00:30]} h6+ {[%emt 0:00:19]} 57. Kg4 {[%emt 0:00:43]} h5+ {[%emt 0:00:01]} 58. Kg3 {[%emt 0:00:53]} Kh6 {[%emt 0:02:30]} 59. Ne3 {[%emt 0:00:24]} Rb1 {[%emt 0:01:11]} 60. Nf5+ {[%emt 0:00:17]} Kg6 {[%emt 0:00:15]} 61. Nh4+ {[%emt 0:00:05]} Kh7 {[%emt 0:00:01]} 62. Nf5 {[%emt 0:00:44]} Rg1+ {[%emt 0:00:24]} 63. Kh4 {[%emt 0:00:25]} Rg4+ {[%emt 0:01:14]} 64. Kxh5 {[%emt 0:00:09]} Rxf4 {[%emt 0:00:01]} 65. Kg5 {[%emt 0:00:11]} Kg8 {[%emt 0:01:00]} 66. Kxf4 {[%emt 0:00:14]} Kf8 {[%emt 0:00:30]} 67. Nd4 {[%emt 0:00:11]} Ke7 {[%emt 0:00:01]} 68. Kf5 {[%emt 0:00:10]} Kd7 {[%emt 0:00:08]} 69. Kf6 {[%emt 0:00:09]} Ke8 {[%emt 0:00:03]} 70. Nf5 {[%emt 0:00:10]} Kf8 {[%emt 0:00:02]} 71. Nd6 {[%emt 0:00:09]} Kg8 {[%emt 0:00:01]} 72. Nxf7 {[%emt 0:00:12]} Kh7 {[%emt 0:00:04]} 73. Nh6 {[%emt 0:00:26]} Kh8 {[%emt 0:00:09]} 74. e6 {[%emt 0:00:08]} Kh7 {[%emt 0:00:01]} 75. e7 {[%emt 0:00:07]} 1-0